bitfinex-derivatives/quotes_BTCF0:USTF0_20250930
["timestamp","ask_amount","ask_price","bid_price","bid_amount"]
[1759241020062,0.90284452,113320.0,113310.0,9.672e-05]
[1759241020270,0.90284452,113320.0,113310.0,0.08871032]
[1759241020469,1.74744452,113320.0,113310.0,0.00049672]
[1759241020767,0.90284452,113320.0,113310.0,0.08871032]
[1759241021357,1.74776452,113320.0,113310.0,0.48871032]
[1759241021565,1.2939258,113320.0,113310.0,0.48871032]
[1759241021764,1.74776452,113320.0,113310.0,0.09471032]
[1759241021965,1.74776452,113320.0,113310.0,0.00649672]
[1759241022370,1.74776452,113320.0,113310.0,0.00449672]
[1759241022670,1.74776452,113320.0,113310.0,0.00409672]
[1759241022873,1.74776452,113320.0,113310.0,0.00909672]
[1759241023067,1.74776452,113320.0,113310.0,0.00649672]
[1759241023571,1.74776452,113320.0,113310.0,0.00609672]
[1759241023766,1.74776452,113320.0,113310.0,0.09471032]
[1759241024667,2.14776452,113320.0,113310.0,0.00649672]
[1759241025062,2.14776452,113320.0,113310.0,0.00609672]
[1759241025262,2.14776452,113320.0,113310.0,0.00649672]
[1759241025470,1.30284452,113320.0,113310.0,0.09471042]
[1759241025769,1.74736452,113320.0,113310.0,0.09471042]
[1759241025966,1.74736452,113320.0,113310.0,0.00649672]
[1759241026161,1.75836452,113320.0,113310.0,0.08871032]
[1759241026373,1.76336452,113320.0,113310.0,0.08871032]
[1759241026872,0.83063872,113320.0,113310.0,0.08871032]
[1759241027166,1.67471872,113320.0,113310.0,0.08871032]
[1759241027371,0.83063872,113320.0,113310.0,0.08871032]
[1759241027571,0.3768,113320.0,113310.0,0.48871032]
[1759241027773,1.221,113320.0,113310.0,0.48871032]
[1759241028372,1.22088,113320.0,113310.0,0.48871032]
[1759241029066,1.2206,113320.0,113310.0,0.48871032]
[1759241029276,0.3768,113320.0,113310.0,0.48871032]
[1759241029575,0.3768,113320.0,113310.0,0.94254904]
[1759241029576,0.016,113320.0,113310.0,0.94254904]
[1759241029873,0.016,113320.0,113310.0,0.48871032]
[1759241030976,0.3608,113330.0,113320.0,0.0882061]
[1759241031671,0.3608,113330.0,113320.0,0.4882061]
[1759241031876,1.21328286,113340.0,113330.0,0.0881983]
[1759241032268,0.36980286,113340.0,113330.0,0.0881983]
[1759241032469,0.43169519,113350.0,113340.0,0.0881905]
[1759241032674,1.36299789,113350.0,113330.0,0.4881932]
[1759241032871,0.3608,113340.0,113330.0,0.0881932]
[1759241033075,0.82341745,113340.0,113330.0,0.0885932]
[1759241033372,0.3608,113340.0,113330.0,0.4885932]
[1759241034680,0.3658,113340.0,113330.0,0.4885932]
[1759241034875,0.38582995,113340.0,113330.0,0.4885932]
[1759241035382,0.3768,113340.0,113330.0,0.4885932]
[1759241035574,0.3608,113340.0,113330.0,0.4885932]
[1759241035781,0.3658,113340.0,113330.0,0.4885932]
[1759241036081,0.3658,113340.0,113330.0,0.94243192]
[1759241036283,0.3658,113340.0,113330.0,0.4885932]
[1759241036981,0.3608,113340.0,113330.0,0.4885932]
[1759241037186,0.003,113340.0,113330.0,0.8493932]
[1759241038582,0.003,113340.0,113330.0,0.4885932]
[1759241039384,0.003,113340.0,113330.0,0.94243192]
[1759241039686,0.003,113340.0,113330.0,1.78491192]
[1759241040190,0.44072601,113350.0,113340.0,0.0881902]
[1759241040382,0.44072601,113350.0,113340.0,0.13547975]
[1759241041784,0.3658,113350.0,113340.0,0.13547975]
[1759241041974,0.81963872,113350.0,113340.0,0.13547975]
[1759241042179,0.81963872,113350.0,113340.0,0.13587975]
[1759241042677,0.82263872,113350.0,113340.0,0.13547975]
[1759241042879,0.3688,113350.0,113340.0,0.13587975]
[1759241044283,0.82263872,113350.0,113340.0,0.13587975]
[1759241044485,0.91082122,113350.0,113340.0,0.0881902]
[1759241044872,1.31082122,113350.0,113340.0,0.0004]
[1759241045077,0.0881903,113340.0,113330.0,0.13548535]
[1759241045286,1.74514902,113340.0,113330.0,0.0889958]
[1759241045479,1.74514902,113340.0,113330.0,0.0881958]
[1759241045788,1.74514902,113340.0,113330.0,0.0885958]
[1759241045980,1.74514902,113340.0,113330.0,0.0004]
[1759241046183,1.65703872,113340.0,113330.0,0.0885982]
[1759241046478,1.74822912,113340.0,113330.0,0.0885982]
[1759241047380,1.74522912,113340.0,113330.0,0.0885982]
[1759241047589,0.3698,113340.0,113330.0,0.0885982]
[1759241047779,1.2116,113340.0,113330.0,0.0885982]
[1759241048086,0.3698,113340.0,113330.0,0.0885982]
[1759241048282,0.3698,113340.0,113330.0,0.13588775]
[1759241048283,0.3738,113340.0,113330.0,0.13588775]
[1759241048977,0.82163872,113340.0,113330.0,0.04728955]
[1759241049183,0.82163872,113340.0,113330.0,0.0004]
[1759241049184,1.30982912,113340.0,113330.0,0.0004]
[1759241049488,2.06379872,113340.0,113330.0,0.0881982]
[1759241049682,2.07079872,113340.0,113330.0,0.0881982]
[1759241049884,2.15898912,113340.0,113330.0,0.0885982]
[1759241050384,2.15898912,113340.0,113330.0,0.0004]
[1759241050584,2.15898912,113340.0,113330.0,0.0881982]
[1759241050781,2.15898912,113340.0,113330.0,0.0885982]
[1759241051187,2.15898912,113340.0,113330.0,0.0004]
[1759241051389,0.0881982,113330.0,113310.0,0.13559557]
[1759241051588,1.65635872,113320.0,113310.0,0.13559557]
[1759241051790,1.65635872,113320.0,113310.0,0.08870602]
[1759241053186,2.01715872,113320.0,113310.0,0.08870602]
[1759241053385,2.10536462,113320.0,113310.0,0.08870602]
[1759241053585,1.1216,113320.0,113310.0,0.08831032]
[1759241053790,2.41687872,113320.0,113310.0,0.08831032]
[1759241053990,2.50508452,113320.0,113310.0,0.08871032]
[1759241054187,2.50508452,113320.0,113310.0,0.08831032]
[1759241054388,2.50508452,113320.0,113310.0,0.08871032]
[1759241054588,2.50908452,113320.0,113310.0,0.08871032]
[1759241054889,2.50908452,113320.0,113310.0,0.00049672]
[1759241055086,2.50908452,113320.0,113310.0,0.08871032]
[1759241055384,2.50508452,113320.0,113310.0,0.00049672]
[1759241055584,1.67164452,113320.0,113310.0,0.08831032]
[1759241055781,2.51388452,113320.0,113310.0,0.08871032]
[1759241056285,1.67164452,113320.0,113310.0,0.08871032]
[1759241056481,2.51376452,113320.0,113310.0,0.08871032]
[1759241056682,2.51376452,113320.0,113310.0,0.00049672]
[1759241057083,2.51376452,113320.0,113310.0,9.672e-05]
[1759241057284,2.53483496,113320.0,113310.0,0.00049672]
[1759241057484,1.69203496,113320.0,113310.0,9.672e-05]
[1759241057789,2.53475496,113320.0,113310.0,9.672e-05]
[1759241058187,2.53475496,113320.0,113310.0,0.00049672]
[1759241058379,1.69203496,113320.0,113310.0,9.672e-05]
[1759241058584,1.69203496,113320.0,113310.0,0.00049672]
[1759241059188,2.53459496,113320.0,113310.0,0.00049672]
[1759241059789,2.53467496,113320.0,113310.0,0.00049672]
[1759241060093,1.67164452,113320.0,113310.0,0.00049672]
[1759241060291,2.51404452,113320.0,113310.0,0.00049672]
[1759241061195,1.67164452,113320.0,113310.0,0.00049672]
[1759241061398,2.51380452,113320.0,113310.0,0.00049672]
[1759241061688,2.53413769,113320.0,113310.0,0.00049672]
[1759241061892,0.0882215,113300.0,113290.0,0.00030328]
[1759241062093,1.26366022,113300.0,113290.0,0.10162371]
[1759241062293,2.10554022,113300.0,113290.0,0.01379441]
[1759241062595,2.10558022,113300.0,113290.0,0.01379441]
[1759241062895,1.26366022,113300.0,113290.0,0.10202361]
[1759241063095,2.10559694,113300.0,113290.0,0.01679441]
[1759241063292,2.09698773,113300.0,113290.0,0.01679441]
[1759241063595,2.09689101,113300.0,113290.0,0.01639441]
[1759241063893,2.49689101,113300.0,113290.0,0.01679441]
[1759241064091,2.49689101,113300.0,113290.0,0.01639441]
[1759241064286,2.49689101,113300.0,113290.0,0.01679441]
[1759241064487,2.49781101,113300.0,113290.0,0.01479441]
[1759241064692,1.65505101,113300.0,113290.0,0.01479441]
[1759241064888,1.25505101,113300.0,113290.0,0.10302361]
[1759241065089,2.09905101,113300.0,113290.0,0.10302361]
[1759241065287,2.09905101,113300.0,113290.0,0.0014]
[1759241065491,1.25505101,113300.0,113290.0,0.0896292]
[1759241065689,2.09909101,113300.0,113290.0,0.0896292]
[1759241065996,2.09897101,113300.0,113290.0,0.0892292]
[1759241066188,2.09897101,113300.0,113290.0,0.001]
[1759241066388,2.49897101,113300.0,113290.0,0.00459996]
[1759241066689,2.49897101,113300.0,113290.0,0.00499996]
[1759241068596,2.49897101,113300.0,113290.0,0.00459996]
[1759241068798,2.49897101,113300.0,113290.0,0.00499996]
[1759241068985,2.49897101,113300.0,113290.0,0.00459996]
[1759241069189,2.49897101,113300.0,113290.0,0.00499996]
[1759241069390,2.57036326,113300.0,113290.0,0.00499996]
[1759241069894,0.0882449,113270.0,113260.0,0.02485]
[1759241070098,2.10685973,113270.0,113260.0,0.02485]
[1759241070296,2.10685973,113270.0,113260.0,0.02525]
[1759241070491,2.10685973,113270.0,113260.0,0.02485]
[1759241070794,2.11590656,113270.0,113260.0,0.02525]
[1759241070990,2.11590656,113270.0,113260.0,0.02485]
[1759241071189,2.11590656,113270.0,113260.0,0.02525]
[1759241071890,1.27282656,113270.0,113260.0,0.02525]
[1759241072090,2.11538656,113270.0,113260.0,0.02725]
[1759241072991,2.11542656,113270.0,113260.0,0.02725]
[1759241073394,2.11542656,113270.0,113260.0,0.02525]
[1759241073792,2.11522656,113270.0,113260.0,0.1135027]
[1759241073996,0.81898784,113270.0,113260.0,0.1135027]
[1759241074300,2.18358164,113270.0,113260.0,0.1145027]
[1759241074692,1.34154164,113270.0,113260.0,0.1145027]
[1759241074893,2.18350164,113270.0,113260.0,0.1145027]
[1759241075093,1.34154164,113270.0,113260.0,0.1145027]
[1759241075294,2.18350164,113270.0,113260.0,0.1145027]
[1759241075694,1.34154164,113270.0,113260.0,0.1145027]
[1759241075998,2.18346164,113270.0,113260.0,0.02625]
[1759241076200,2.18346164,113270.0,113260.0,0.1145026]
[1759241076501,2.18346164,113270.0,113260.0,0.02625]
[1759241076693,2.18346164,113270.0,113260.0,0.1145027]
[1759241077001,2.18338164,113270.0,113260.0,0.1145027]
[1759241077598,2.18318164,113270.0,113260.0,0.1145027]
[1759241077797,1.34154164,113270.0,113260.0,0.1145027]
[1759241078192,2.18282164,113270.0,113260.0,0.1145027]
[1759241078393,2.18270164,113270.0,113260.0,0.1145027]
[1759241078805,1.34154164,113270.0,113260.0,0.1145027]
[1759241079003,2.18274164,113270.0,113260.0,0.1145027]
[1759241079201,1.34154164,113270.0,113260.0,0.1145027]
[1759241079408,2.18242164,113270.0,113260.0,0.1145027]
[1759241079599,0.73074294,113270.0,113260.0,1.0370565]
[1759241079797,1.57146294,113270.0,113260.0,1.0370565]
[1759241080103,0.73074294,113270.0,113260.0,0.5145027]
[1759241080306,0.72169611,113270.0,113260.0,1.0370565]
[1759241080603,0.72169611,113270.0,113260.0,0.68434605]
[1759241080997,0.73072367,113270.0,113260.0,0.68434605]
[1759241081192,0.73072367,113270.0,113260.0,0.16179225]
[1759241081406,0.72169611,113270.0,113260.0,0.16179225]
[1759241082202,0.70734613,113270.0,113260.0,0.16179225]
[1759241082397,0.70734613,113270.0,113260.0,0.07353955]
[1759241082398,1.31814483,113270.0,113260.0,0.07353955]
[1759241082799,1.31814483,113270.0,113260.0,0.02625]
[1759241082996,1.32686035,113270.0,113260.0,0.02625]
[1759241083304,1.74725616,113270.0,113260.0,0.02585]
[1759241083604,1.74725616,113270.0,113260.0,0.02625]
[1759241085605,2.18781616,113270.0,113260.0,0.02625]
[1759241085792,2.16783067,113270.0,113260.0,0.02625]
[1759241086198,2.18823426,113270.0,113260.0,0.1145027]
[1759241086399,2.58823426,113270.0,113260.0,0.02625]
[1759241086601,2.58814394,113270.0,113260.0,0.02585]
[1759241086801,2.58814394,113270.0,113260.0,0.02625]
[1759241087100,2.18814394,113270.0,113260.0,0.02625]
[1759241087408,1.34726394,113270.0,113260.0,0.02625]
[1759241087706,2.18830394,113270.0,113260.0,0.02525]
[1759241088003,2.19418394,113270.0,113260.0,0.1135027]
[1759241088401,2.19394394,113270.0,113260.0,0.1135027]
[1759241088604,2.19398394,113270.0,113260.0,0.02525]
[1759241088805,1.35326394,113270.0,113260.0,0.1135027]
[1759241089105,2.19386394,113270.0,113260.0,0.1135027]
[1759241089304,2.59386394,113270.0,113260.0,0.02525]
[1759241089500,2.59386394,113270.0,113260.0,0.02485]
[1759241089804,2.59386394,113270.0,113260.0,0.02525]
[1759241090006,2.59386394,113270.0,113260.0,0.02485]
[1759241090200,2.59386394,113270.0,113260.0,0.02525]
[1759241090597,2.59514394,113270.0,113260.0,0.1135026]
[1759241090903,1.75326394,113270.0,113260.0,0.1135026]
[1759241091102,1.35326394,113270.0,113260.0,0.02525]
[1759241091700,1.35326394,113270.0,113260.0,0.1135027]
[1759241092007,2.17471004,113270.0,113260.0,0.1135027]
[1759241092203,2.19513384,113270.0,113260.0,0.02525]
[1759241092404,2.19504415,113270.0,113260.0,0.02525]
[1759241092602,2.19504415,113270.0,113260.0,0.02485]
[1759241092908,2.19504415,113270.0,113260.0,0.02525]
[1759241093804,2.59504415,113270.0,113260.0,0.02525]
[1759241094031,2.59504415,113270.0,113260.0,0.02485]
[1759241094212,2.59504415,113270.0,113260.0,0.02525]
[1759241095502,2.59513357,113270.0,113260.0,0.02525]
[1759241095708,2.59504415,113270.0,113260.0,0.02525]
[1759241096104,2.59504415,113270.0,113260.0,0.02485]
[1759241096305,2.59504415,113270.0,113260.0,0.02525]
[1759241096501,2.59504415,113270.0,113260.0,0.02485]
[1759241096696,2.59504415,113270.0,113260.0,0.02525]
[1759241096911,1.35336262,113270.0,113260.0,0.02525]
[1759241097108,2.19450087,113270.0,113260.0,0.02525]
[1759241097306,2.19436415,113270.0,113260.0,0.0004]
[1759241097610,2.19428415,113270.0,113260.0,0.0004]
[1759241098607,0.0882605,113250.0,113240.0,0.04728955]
[1759241098811,2.17428983,113250.0,113240.0,0.13555785]
[1759241099206,1.24422933,113250.0,113240.0,0.13595785]
[1759241099507,2.08622933,113250.0,113240.0,0.13595785]
[1759241099709,2.17448983,113250.0,113240.0,0.13595785]
[1759241099904,2.17448983,113250.0,113240.0,0.04768955]
[1759241100108,2.17448983,113250.0,113240.0,0.13595785]
[1759241100606,2.17448983,113250.0,113240.0,0.13555785]
[1759241100805,2.17448983,113250.0,113240.0,0.13595785]
[1759241101000,2.17448983,113250.0,113240.0,0.0124]
[1759241101001,2.19478951,113250.0,113240.0,0.0124]
[1759241101405,3.11726778,113250.0,113240.0,0.0124]
[1759241101601,3.11726778,113250.0,113240.0,0.012]
[1759241102108,0.0882839,113220.0,113210.0,0.13564443]
[1759241102417,0.35488228,113220.0,113210.0,0.13564443]
[1759241102717,1.67739608,113220.0,113210.0,0.08875488]
[1759241103008,1.74875404,113220.0,113210.0,0.08875488]
[1759241103310,1.74875404,113220.0,113210.0,0.136306]
[1759241103513,1.23496014,113220.0,113210.0,0.136306]
[1759241104101,0.43500014,113220.0,113210.0,0.139306]
[1759241104306,0.43800014,113220.0,113210.0,1.01430868]
[1759241104507,0.43800014,113220.0,113210.0,0.49175488]
[1759241104706,0.35788228,113220.0,113210.0,0.55480449]
[1759241104910,0.00308228,113220.0,113210.0,1.01430868]
[1759241105112,1.2092,113230.0,113210.0,1.07735829]
[1759241105410,1.8200298,113230.0,113220.0,0.13580729]
[1759241105613,0.0882838,113220.0,113210.0,0.13927827]
[1759241105913,1.04288257,113220.0,113210.0,0.13929055]
[1759241106114,1.04288257,113220.0,113210.0,0.13889055]
[1759241106415,1.04288257,113220.0,113210.0,0.13929055]
[1759241106614,1.04288257,113220.0,113210.0,0.13589055]
[1759241106809,1.04288257,113220.0,113210.0,0.04800325]
[1759241107009,1.89164257,113220.0,113210.0,0.04760325]
[1759241107216,1.89164257,113220.0,113210.0,0.04800325]
[1759241107713,1.80315877,113220.0,113210.0,0.00046748]
[1759241108015,1.89132247,113220.0,113210.0,0.08835898]
[1759241108210,1.89132247,113220.0,113210.0,0.09275898]
[1759241108516,1.89116247,113220.0,113210.0,0.00446748]
[1759241108713,1.04288247,113220.0,113210.0,0.00446748]
[1759241108915,1.89136247,113220.0,113210.0,0.00446748]
[1759241109114,1.89136247,113220.0,113210.0,0.00046748]
[1759241109415,1.89136247,113220.0,113210.0,0.00746748]
[1759241109713,1.89136247,113220.0,113210.0,0.00706748]
[1759241110018,1.91161151,113220.0,113210.0,0.00746748]
[1759241110203,0.0882916,113210.0,113200.0,0.0008]
[1759241110411,0.0882994,113200.0,113190.0,0.0883022]
[1759241110608,1.7323538,113200.0,113190.0,0.0891022]
[1759241110818,1.7323538,113200.0,113190.0,0.0883022]
[1759241111015,1.7323538,113200.0,113190.0,0.0887022]
[1759241111218,0.88343572,113200.0,113190.0,0.0887022]
[1759241111420,2.34304892,113200.0,113190.0,0.0887022]
[1759241111609,0.97173512,113200.0,113190.0,0.0887022]
[1759241111814,0.44918132,113200.0,113190.0,0.0887022]
[1759241112017,0.97173512,113200.0,113190.0,0.0887022]
[1759241112220,1.82133512,113200.0,113190.0,0.0887022]
[1759241112416,2.34388892,113200.0,113190.0,0.0004]
[1759241112618,2.74388932,113200.0,113170.0,0.13585547]
[1759241112925,1.3284739,113180.0,113170.0,0.0883228]
[1759241113118,2.1783776,113180.0,113170.0,0.0883228]
[1759241113320,0.0883228,113170.0,113160.0,0.0008]
[1759241113618,0.0883336,113160.0,113140.0,0.0883461]
[1759241113824,1.33257402,113150.0,113140.0,0.0008]
[1759241114012,0.0883461,113140.0,113120.0,0.08844471]
[1759241114213,1.2441538,113130.0,113120.0,0.0008]
[1759241114418,1.23553226,113130.0,113120.0,0.10245265]
[1759241114613,1.23553226,113130.0,113120.0,0.0883617]
[1759241114614,2.08673226,113130.0,113120.0,0.0883617]
[1759241114819,2.18415554,113130.0,113120.0,0.0004]
[1759241115123,2.18431431,113130.0,113120.0,0.01328572]
[1759241115322,2.253717,113130.0,113120.0,0.10204742]
[1759241115626,2.253717,113130.0,113120.0,0.01328572]
[1759241115819,2.3246708,113130.0,113120.0,0.01368572]
[1759241116216,2.3246708,113130.0,113120.0,0.0004]
[1759241116217,2.32459203,113130.0,113120.0,0.0004]
[1759241116418,0.0843618,113120.0,113100.0,0.0883774]
[1759241116716,0.72168401,113110.0,113100.0,0.0887728]
[1759241116922,1.57016401,113110.0,113100.0,0.0887728]
[1759241117125,1.21276401,113110.0,113100.0,0.0887728]
[1759241117326,1.73231781,113110.0,113100.0,0.0887728]
[1759241117627,2.09311781,113110.0,113100.0,0.0887728]
[1759241118023,0.73268401,113110.0,113100.0,0.0903728]
[1759241118225,1.25523781,113110.0,113100.0,0.0907728]
[1759241118523,1.34360731,113110.0,113100.0,0.0024]
[1759241118822,2.19548731,113110.0,113100.0,0.4024]
[1759241119129,2.20228731,113110.0,113100.0,0.4024]
[1759241119426,1.26223781,113110.0,113100.0,0.4907773]
[1759241119629,2.11391781,113110.0,113100.0,0.4907773]
[1759241119822,2.11395781,113110.0,113100.0,0.4907773]
[1759241120124,2.20232731,113110.0,113100.0,0.4024]
[1759241120323,1.35060731,113110.0,113100.0,0.4024]
[1759241120523,2.20220731,113110.0,113100.0,0.4024]
[1759241121125,2.20220731,113110.0,113100.0,0.0024]
[1759241121428,2.20188731,113110.0,113100.0,0.0024]
[1759241121630,2.20188731,113110.0,113100.0,0.002]
[1759241121926,2.20192731,113110.0,113100.0,0.0024]
[1759241122316,2.6018433,113110.0,113100.0,0.0024]
[1759241122522,1.7505233,113110.0,113100.0,0.002]
[1759241122917,4.2559633,113110.0,113100.0,0.002]
[1759241123130,1.7505233,113110.0,113100.0,0.0024]
[1759241123515,4.2558033,113110.0,113100.0,0.0024]
[1759241123717,2.2010433,113110.0,113100.0,0.0024]
[1759241124222,2.2011233,113110.0,113100.0,0.0024]
[1759241124424,0.73967484,113110.0,113100.0,0.0907773]
[1759241124627,1.35059814,113110.0,113100.0,0.0907773]
[1759241124829,1.26222864,113110.0,113100.0,0.0907773]
[1759241125131,2.11330864,113110.0,113100.0,0.0907773]
[1759241125331,2.20167814,113110.0,113100.0,0.0907773]
[1759241125624,2.11330864,113110.0,113100.0,0.0024]
[1759241125822,0.73967484,113110.0,113100.0,0.0907772]
[1759241126023,2.11322864,113110.0,113100.0,0.0907772]
[1759241126222,0.73967484,113110.0,113100.0,0.4907772]
[1759241126419,1.59039484,113110.0,113100.0,0.4907772]
[1759241126624,2.20131814,113110.0,113100.0,0.4907772]
[1759241126827,2.20131814,113110.0,113100.0,0.4024]
[1759241127028,2.11294864,113110.0,113100.0,0.4907773]
[1759241127524,2.11378864,113110.0,113100.0,0.4907773]
[1759241127727,1.26222864,113110.0,113100.0,0.4907773]
[1759241127923,2.20215814,113110.0,113100.0,0.4024]
[1759241128224,2.20215814,113110.0,113100.0,0.0024]
[1759241128634,2.20215814,113110.0,113100.0,0.002]
[1759241128833,2.11378864,113110.0,113100.0,0.0907773]
[1759241129028,2.20215814,113110.0,113100.0,0.0024]
[1759241129222,2.20215814,113110.0,113100.0,0.0907773]
[1759241129624,1.67960434,113110.0,113100.0,0.0907773]
[1759241129934,2.20215814,113110.0,113100.0,0.0907773]
[1759241130225,2.11378864,113110.0,113100.0,0.0907773]
[1759241130426,0.73967484,113110.0,113100.0,0.4907773]
[1759241130623,1.67992424,113110.0,113100.0,0.4907773]
[1759241130827,2.20247804,113110.0,113100.0,0.0024]
[1759241131025,2.20247804,113110.0,113100.0,0.002]
[1759241131234,2.20247804,113110.0,113100.0,0.0024]
[1759241131525,2.20247804,113110.0,113100.0,0.002]
[1759241131724,2.60247804,113110.0,113100.0,0.0024]
[1759241131923,2.6024032,113110.0,113100.0,0.0024]
[1759241132130,2.6024032,113110.0,113100.0,0.002]
[1759241132430,2.6024032,113110.0,113100.0,0.0024]
[1759241133124,1.26225644,113110.0,113100.0,0.0907773]
[1759241133329,2.11409644,113110.0,113100.0,0.4907773]
[1759241133528,0.73970264,113110.0,113100.0,0.4907773]
[1759241133831,1.59162264,113110.0,113100.0,1.0133311]
[1759241134218,1.26225644,113110.0,113100.0,0.4907773]
[1759241134432,2.11409644,113110.0,113100.0,0.4907773]
[1759241135130,0.73970264,113110.0,113100.0,0.4907773]
[1759241135327,2.20230584,113110.0,113100.0,0.0024]
[1759241135527,1.26225644,113110.0,113100.0,0.0903773]
[1759241135722,0.73970264,113110.0,113100.0,0.4907773]
[1759241135932,1.59186264,113110.0,113100.0,0.4907773]
[1759241136133,0.02110264,113110.0,113100.0,1.0133311]
[1759241136326,0.38190264,113110.0,113100.0,0.4907773]
[1759241136635,0.38190264,113110.0,113100.0,0.0907773]
[1759241136930,0.92554279,113110.0,113100.0,0.4907773]
[1759241137129,0.92554279,113110.0,113100.0,0.0907773]
[1759241137130,0.83717319,113110.0,113100.0,0.0907773]
[1759241138140,0.38190264,113110.0,113100.0,0.4907773]
[1759241138431,0.02110264,113110.0,113100.0,0.4907773]
[1759241138629,0.38190264,113110.0,113100.0,0.4907773]
[1759241138835,0.02110264,113110.0,113100.0,0.4907773]
[1759241139435,0.02110264,113110.0,113100.0,0.54604785]
[1759241139626,0.35954492,113120.0,113110.0,0.0883697]
[1759241139829,1.28208269,113130.0,113120.0,0.0883619]
[1759241140033,0.92116269,113130.0,113120.0,0.0883619]
[1759241140332,1.21264,113140.0,113130.0,0.0883541]
[1759241140530,0.3608,113140.0,113130.0,0.94362465]
[1759241140731,6.329e-05,113140.0,113130.0,0.99116042]
[1759241141128,6.329e-05,113140.0,113130.0,1.30442465]
[1759241141328,0.3608,113150.0,113140.0,0.0883463]
[1759241141329,0.35965512,113150.0,113140.0,0.0883463]
[1759241141631,1.16917,113170.0,113160.0,0.0883306]
[1759241141823,0.36165,113170.0,113160.0,0.0883306]
[1759241142028,0.81692055,113170.0,113160.0,0.0883306]
[1759241142333,0.98451141,113170.0,113160.0,0.0883306]
[1759241142535,0.98451141,113170.0,113160.0,0.0887306]
[1759241142536,0.89618861,113170.0,113160.0,0.0887306]
[1759241143035,0.98451141,113170.0,113160.0,0.0887306]
[1759241143235,0.98451141,113170.0,113160.0,0.0947306]
[1759241143434,0.98451141,113170.0,113160.0,0.0064]
[1759241143634,0.98451141,113170.0,113160.0,0.0943307]
[1759241143830,0.98451141,113170.0,113160.0,0.0947307]
[1759241144038,0.89618861,113170.0,113160.0,0.0947307]
[1759241144337,0.88739162,113170.0,113160.0,0.0947307]
[1759241144536,1.28408107,113170.0,113160.0,0.0947307]
[1759241145044,1.83639081,113170.0,113160.0,0.0094]
[1759241145739,0.0853307,113160.0,113140.0,0.0891433]
[1759241145937,1.66787055,113150.0,113140.0,0.0891433]
[1759241146233,2.11700905,113150.0,113140.0,0.0004]
[1759241146636,2.51700905,113150.0,113130.0,0.0883496]
[1759241146844,1.3009385,113150.0,113140.0,0.0004]
[1759241147036,0.0883463,113140.0,113130.0,0.0883541]
[1759241147340,0.4421463,113140.0,113130.0,0.0008]
[1759241147744,0.4421463,113140.0,113130.0,0.0891541]
[1759241147931,0.89741685,113140.0,113130.0,0.0008]
[1759241148131,1.66719055,113140.0,113130.0,0.0883541]
[1759241148336,0.81607055,113140.0,113130.0,0.0887541]
[1759241148537,1.66719055,113140.0,113130.0,0.0883541]
[1759241148841,1.66219055,113140.0,113130.0,0.0887541]
[1759241149141,1.66211055,113140.0,113130.0,0.0887541]
[1759241149340,1.75045685,113140.0,113130.0,0.0897541]
[1759241149641,1.75145685,113140.0,113130.0,0.089754]
[1759241149839,1.75121685,113140.0,113130.0,0.089754]
[1759241150040,1.75221685,113140.0,113130.0,0.089754]
[1759241150240,1.75221675,113140.0,113130.0,0.0014]
[1759241150740,2.15221675,113140.0,113130.0,0.0014]
[1759241151138,1.30141675,113140.0,113130.0,0.001]
[1759241151339,1.30141675,113140.0,113130.0,0.0014]
[1759241151340,2.15149675,113140.0,113130.0,0.0014]
[1759241152142,1.30141675,113140.0,113130.0,0.0014]
[1759241152442,2.15157675,113140.0,113130.0,0.0014]
[1759241152638,2.15157675,113140.0,113130.0,0.0897541]
[1759241153238,0.81307055,113140.0,113130.0,0.0897541]
[1759241153444,1.66311055,113140.0,113130.0,0.0897541]
[1759241153640,0.81307055,113140.0,113130.0,0.0897541]
[1759241153945,1.66275055,113140.0,113130.0,0.0897541]
[1759241154339,0.3578,113140.0,113130.0,0.0897541]
[1759241154544,0.002,113140.0,113130.0,0.94502465]
[1759241154747,0.002,113140.0,113130.0,0.8505541]
[1759241155143,0.002,113140.0,113130.0,1.30582465]
[1759241155344,0.3608,113160.0,113150.0,0.0883384]
[1759241155542,1.28256107,113170.0,113160.0,0.0883307]
[1759241155847,0.43212107,113170.0,113160.0,0.0883307]
[1759241156345,0.52044397,113170.0,113140.0,0.95185995]
[1759241156535,0.43212107,113170.0,113160.0,0.0883307]
[1759241157147,0.52044397,113170.0,113160.0,0.0883307]
[1759241157552,0.52244397,113170.0,113150.0,0.0883335]
[1759241157746,0.4491307,113160.0,113150.0,0.0883335]
[1759241158249,0.3608,113160.0,113140.0,0.1367871]
[1759241158549,0.4491356,113160.0,113150.0,0.0883385]
[1759241158742,0.3608,113160.0,113150.0,0.0883385]
[1759241158943,0.3598,113160.0,113150.0,0.0883385]
[1759241159143,0.4481307,113160.0,113150.0,0.0883385]
[1759241159547,0.0863385,113150.0,113140.0,0.0897463]
[1759241159750,0.4471385,113150.0,113140.0,0.0014]
[1759241159950,0.90440675,113160.0,113140.0,0.0897463]
[1759241160155,0.3598,113150.0,113140.0,0.0883463]
[1759241160353,0.90340905,113150.0,113140.0,0.0004]
[1759241160656,0.4471385,113150.0,113140.0,0.0004]
[1759241160848,0.3588,113150.0,113140.0,0.0887463]
[1759241161154,0.3588,113150.0,113140.0,0.0004]
[1759241161155,0.4471385,113150.0,113140.0,0.0004]
[1759241161355,1.75108905,113150.0,113140.0,0.0004]
[1759241161648,0.0883463,113140.0,113130.0,0.1357946]
[1759241161853,0.0883541,113130.0,113120.0,0.1358036]
[1759241162056,0.4491541,113130.0,113110.0,0.1358092]
[1759241162258,1.2987541,113130.0,113120.0,0.0008]
[1759241162555,1.6595541,113130.0,113120.0,0.0008]
[1759241162756,2.0595541,113130.0,113110.0,0.0474445]
[1759241162955,0.0863697,113110.0,113100.0,0.136622]
[1759241163150,1.2966097,113110.0,113100.0,0.0482445]
[1759241163357,1.75188025,113110.0,113100.0,0.0474445]
[1759241163557,1.75188025,113110.0,113100.0,0.0478445]
[1759241163758,1.75188025,113110.0,113100.0,0.0474445]
[1759241163965,1.74788025,113110.0,113100.0,0.0004]
[1759241164160,1.74788025,113110.0,113090.0,0.16798436]
[1759241164357,1.74788025,113110.0,113100.0,0.0004]
[1759241164558,2.10792025,113110.0,113090.0,0.16798436]
[1759241164853,0.3488,113100.0,113090.0,0.16838436]
[1759241165051,0.3488,113100.0,113090.0,0.12093986]
[1759241165248,0.4371774,113100.0,113090.0,0.09560747]
[1759241165448,0.3488,113100.0,113090.0,0.08006255]
[1759241165656,0.4371774,113100.0,113090.0,0.16844785]
[1759241165962,0.4301774,113100.0,113090.0,0.16844785]
[1759241166161,0.88544795,113100.0,113090.0,0.06222918]
[1759241166553,0.88844795,113100.0,113090.0,0.06282918]
[1759241166754,0.88844795,113100.0,113090.0,0.01572449]
[1759241167058,0.88844795,113100.0,113090.0,0.01432449]
[1759241167059,0.88144795,113100.0,113090.0,0.01432449]